bitfinex-derivatives/quotes_BTCF0:USTF0_20210705
["timestamp","ask_amount","ask_price","bid_price","bid_amount"]
[1625510361430,2.5029494,33972.0,33971.0,3.85617906]
[1625510362838,3.72184147,33972.0,33971.0,3.85617906]
[1625510365442,7.47904147,33972.0,33971.0,3.85617906]
[1625510368495,7.82979627,33972.0,33971.0,3.61852906]
[1625510368596,7.82979627,33972.0,33971.0,3.37795362]
[1625510368798,9.2236389,33972.0,33971.0,2.1930198]
[1625510369096,9.2236389,33972.0,33971.0,1.18125418]
[1625510369547,10.7917572,33972.0,33971.0,1.18125418]
[1625510369997,10.7917572,33972.0,33971.0,0.5086643]
[1625510370098,11.03233264,33972.0,33971.0,0.5086643]
[1625510370554,9.46421434,33972.0,33971.0,0.5086643]
[1625510371250,9.46421434,33972.0,33971.0,0.50517575]
[1625510371702,9.46421434,33972.0,33970.0,0.6766076]
[1625510371703,11.03209256,33972.0,33970.0,0.25384809]
[1625510372003,0.01524711,33971.0,33970.0,0.25384809]
[1625510372103,0.07424711,33971.0,33970.0,0.25384809]
[1625510372203,6.57925818,33971.0,33970.0,0.08461603]
[1625510372304,6.57925818,33971.0,33970.0,0.08810562]
[1625510372503,6.57925818,33971.0,33970.0,0.08461603]
[1625510372756,6.57925818,33971.0,33969.0,0.59232027]
[1625510373112,0.01524787,33970.0,33969.0,0.59232027]
[1625510373210,0.07424787,33970.0,33969.0,0.59232027]
[1625510373311,0.07424787,33970.0,33968.0,0.50774628]
[1625510373312,6.51762704,33970.0,33968.0,0.59246138]
[1625510373573,0.01524791,33969.0,33968.0,0.59246138]
[1625510373710,6.51764124,33969.0,33968.0,0.59246138]
[1625510374363,6.50239333,33969.0,33968.0,0.59246138]
[1625510374463,4.93516144,33969.0,33968.0,0.08463734]
[1625510374915,4.93516144,33969.0,33968.0,0.25731759]
[1625510375415,4.93516144,33969.0,33968.0,0.25382798]
[1625510375517,4.93516144,33969.0,33968.0,0.67654994]
[1625510375619,4.93516144,33969.0,33968.0,1.1839624]
[1625510375817,4.99416144,33969.0,33968.0,1.1839624]
[1625510376067,4.99416144,33969.0,33968.0,0.84578242]
[1625510376624,4.99416144,33969.0,33968.0,0.25388649]
[1625510377266,4.99416144,33969.0,33967.0,1.08686374]
[1625510377267,4.99416144,33969.0,33967.0,0.83304777]
[1625510378068,5.11342235,33968.0,33967.0,0.83304777]
[1625510378269,5.23142235,33968.0,33967.0,0.83304777]
[1625510379021,5.23142235,33968.0,33967.0,0.74839543]
[1625510379872,5.23142235,33968.0,33967.0,0.83301374]
[1625510380424,5.23142235,33968.0,33967.0,0.74839543]
[1625510380775,5.23142235,33968.0,33967.0,0.83306498]
[1625510381425,5.23142235,33968.0,33967.0,0.24057544]
[1625510381925,5.23142235,33968.0,33967.0,0.74881612]
[1625510382877,5.23142235,33968.0,33967.0,1.08790013]
[1625510383231,5.23142235,33968.0,33967.0,0.83364719]
[1625510384131,5.17242235,33968.0,33967.0,0.83364719]
[1625510384333,5.11342235,33968.0,33967.0,0.72365007]
[1625510384568,5.11342235,33968.0,33967.0,0.78265007]
[1625510384659,5.11342235,33968.0,33967.0,0.78613929]
[1625510384833,2.15491437,33968.0,33967.0,2.39288794]
[1625510384933,0.76274697,33968.0,33967.0,8.1763188]
[1625510385033,0.52217153,33968.0,33967.0,8.1763188]
[1625510385334,5.468e-05,33969.0,33967.0,8.1763188]
[1625510385433,5.468e-05,33969.0,33967.0,8.2353188]
[1625510385833,0.00014249,33970.0,33967.0,8.2353188]
[1625510385934,0.20862279,33987.0,33968.0,0.00348871]
[1625510386035,1.03339862,33973.0,33968.0,0.00348871]
[1625510386133,1.03339862,33973.0,33972.0,0.48115088]
[1625510386334,1.03339862,33973.0,33972.0,0.59915088]
[1625510386737,1.63088717,33986.0,33972.0,3.4702048]
[1625510386837,1.63088717,33986.0,33972.0,3.5272048]
[1625510387038,0.24057544,33986.0,33980.0,1.35014796]
[1625510387137,0.24057544,33986.0,33981.0,0.057]
[1625510387236,0.29957544,33986.0,33981.0,0.057]
[1625510387437,0.29957544,33986.0,33983.0,3.653]
[1625510387537,0.29957544,33986.0,33983.0,3.71]
[1625510388037,0.24057544,33986.0,33983.0,3.71]
[1625510388139,0.29957544,33986.0,33985.0,0.37648831]
[1625510388338,0.24057544,33986.0,33985.0,0.37648831]
[1625510388438,0.29957544,33986.0,33985.0,0.37648831]
[1625510390092,1.68924071,33986.0,33985.0,0.37648831]
[1625510390692,1.74824071,33986.0,33985.0,0.37648831]
[1625510391092,0.35857544,33986.0,33985.0,0.37648831]
[1625510391594,1.74792299,33986.0,33985.0,0.37648831]
[1625510392347,3.31116153,33986.0,33985.0,0.37648831]
[1625510392447,3.31116153,33986.0,33978.0,0.24057544]
[1625510392647,3.63537153,33986.0,33978.0,0.24057544]
[1625510392850,1.3896716,33980.0,33978.0,0.24057544]
[1625510393048,1.5076716,33980.0,33978.0,0.24057544]
[1625510393552,1.38961527,33979.0,33978.0,0.24057544]
[1625510393648,1.64054527,33979.0,33978.0,0.24057544]
[1625510393748,6.88034527,33979.0,33978.0,0.24057544]
[1625510394151,7.12092071,33979.0,33978.0,0.24057544]
[1625510396206,5.73130544,33979.0,33978.0,0.24057544]
[1625510396305,0.60950544,33979.0,33978.0,0.24057544]
[1625510396406,0.35857544,33979.0,33978.0,0.24057544]
[1625510396861,0.29957544,33979.0,33978.0,0.24057544]
[1625510397508,0.35857544,33979.0,33978.0,0.24057544]
[1625510397613,0.29957544,33979.0,33978.0,0.24057544]
[1625510397913,0.35857544,33979.0,33978.0,0.24057544]
[1625510398215,0.29957544,33979.0,33978.0,0.24057544]
[1625510398328,0.35857544,33979.0,33978.0,0.24057544]
[1625510400066,1.74812067,33979.0,33978.0,0.24057544]
[1625510400682,1.74812067,33979.0,33978.0,0.46742544]
[1625510400788,1.68912067,33979.0,33978.0,0.46742544]
[1625510400868,1.63012067,33979.0,33978.0,0.46742544]
[1625510401324,0.24057544,33979.0,33978.0,0.46742544]
[1625510402676,1.38927929,33984.0,33978.0,0.46742544]
[1625510402779,1.38909305,33985.0,33979.0,0.057]
[1625510402875,0.059,33984.0,33979.0,0.057]
[1625510403379,0.059,33984.0,33983.0,3.6783]
[1625510404178,0.059,33984.0,33983.0,3.91887544]
[1625510406386,0.118,33984.0,33983.0,3.91887544]
[1625510408287,1.3324184,33984.0,33983.0,3.91887544]
[1625510408741,0.118,33984.0,33983.0,3.91887544]
[1625510409890,1.32246572,33984.0,33983.0,3.91887544]
[1625510410344,0.118,33984.0,33983.0,3.91887544]
[1625510412248,0.118,33984.0,33983.0,3.6783]
[1625510412447,0.059,33984.0,33983.0,3.6783]
[1625510412648,0.118,33984.0,33983.0,3.6783]
[1625510413900,0.059,33984.0,33983.0,3.6783]
[1625510414000,0.118,33984.0,33983.0,3.6783]
[1625510414503,0.13323899,33984.0,33983.0,3.68178817]
[1625510415053,0.059,33984.0,33983.0,3.68178817]
[1625510415253,0.118,33984.0,33983.0,3.68178817]
[1625510415557,0.13323923,33984.0,33983.0,3.68178817]
[1625510417063,1.15363218,33984.0,33983.0,3.68178817]
[1625510417357,1.15363218,33984.0,33983.0,0.00348817]
[1625510417659,1.15363218,33984.0,33982.0,0.00348824]
[1625510417914,1.15363218,33984.0,33983.0,0.00348828]
[1625510418217,1.15363218,33984.0,33982.0,0.00348828]
[1625510418317,5.52507544,33983.0,33982.0,0.00348828]
[1625510418516,5.64307544,33983.0,33981.0,1.09781998]
[1625510418616,5.64307544,33983.0,33980.0,1.04073067]
[1625510418716,0.35857544,33983.0,33982.0,0.00348836]
[1625510418817,0.29957544,33983.0,33982.0,0.00348836]
[1625510418966,0.31481472,33983.0,33981.0,0.00348829]
[1625510419167,0.31481472,33983.0,33981.0,1.04420808]
[1625510419266,0.29957544,33983.0,33981.0,1.04420808]
[1625510419516,0.29957544,33983.0,33982.0,0.00348816]
[1625510419624,0.29957544,33983.0,33982.0,1.0441789]
[1625510420969,0.35857544,33983.0,33982.0,1.0441789]
[1625510421068,0.37381449,33983.0,33982.0,0.00348816]
[1625510421468,3.90991449,33983.0,33982.0,0.00348816]
[1625510423875,3.90991449,33983.0,33981.0,1.04060734]
[1625510423974,4.15793449,33983.0,33981.0,0.89460734]
[1625510424073,4.15793449,33983.0,33980.0,1.0406161]
[1625510424074,4.24503449,33983.0,33980.0,1.0406161]
[1625510424178,0.01524139,33982.0,33980.0,1.0406161]
[1625510424274,0.07424139,33982.0,33980.0,1.0406161]
[1625510424375,0.24057544,33981.0,33980.0,1.0406161]
[1625510424475,2.85929812,33981.0,33971.0,1.21420085]
[1625510424574,2.91829812,33981.0,33971.0,1.21420085]
[1625510424676,2.93354016,33981.0,33971.0,1.21420085]
[1625510424875,1.19950193,33978.0,33970.0,1.2142392]
[1625510424975,1.25850193,33978.0,33972.0,0.00348885]
[1625510425076,1.31750193,33978.0,33972.0,0.00348885]
[1625510425178,4.8083,33973.0,33971.0,0.00348887]
[1625510425277,4.8673,33973.0,33971.0,0.00348887]
[1625510425380,5.09685,33973.0,33971.0,0.00348887]
[1625510425478,5.15585,33973.0,33971.0,0.00348887]
[1625510426280,0.48115088,33972.0,33971.0,0.00348887]
[1625510426482,0.59915088,33972.0,33970.0,0.0034889]
[1625510428633,0.59915088,33972.0,33969.0,0.24057544]
[1625510430088,0.59915088,33972.0,33969.0,0.29757544]
[1625510430388,0.54015088,33972.0,33969.0,0.29757544]
[1625510430487,0.54015088,33972.0,33970.0,0.00348884]
[1625510430589,0.59915088,33972.0,33970.0,0.00348884]
[1625510430988,0.54015088,33972.0,33970.0,0.00348884]
[1625510431289,0.59915088,33972.0,33970.0,0.00348884]
[1625510431940,0.59915088,33972.0,33969.0,1.45468055]
[1625510432139,0.59915088,33972.0,33970.0,1.21416555]
[1625510432592,0.59915088,33972.0,33969.0,0.24057544]
[1625510432692,0.82612088,33972.0,33969.0,0.24057544]
[1625510435348,0.76712088,33972.0,33969.0,0.24057544]
[1625510436048,0.82612088,33972.0,33969.0,0.24057544]
[1625510436350,0.76712088,33972.0,33969.0,0.24057544]
[1625510436850,0.76712088,33972.0,33969.0,0.29757544]
[1625510437102,0.76712088,33972.0,33969.0,1.5121657]
[1625510437751,0.28597,33972.0,33969.0,1.27159026]
[1625510437854,0.059,33972.0,33969.0,1.27159026]
[1625510437950,0.059,33972.0,33969.0,1.21459026]
[1625510438301,0.059,33972.0,33970.0,1.21457284]
[1625510438402,0.29957544,33972.0,33971.0,0.24057544]
[1625510438501,0.35857544,33972.0,33971.0,0.24057544]
[1625510442716,0.29957544,33972.0,33971.0,0.24057544]
[1625510443822,0.35857544,33972.0,33971.0,0.24057544]
[1625510443923,0.29957544,33972.0,33971.0,0.24057544]
[1625510445375,0.35857544,33972.0,33971.0,0.24057544]
[1625510446177,1.04542516,33972.0,33971.0,0.93518209]
[1625510447331,1.04542516,33972.0,33971.0,0.69460665]
[1625510448434,1.2860006,33972.0,33971.0,0.69460665]
[1625510450740,1.2860006,33972.0,33971.0,0.97321665]
[1625510450845,1.2860006,33972.0,33971.0,0.97670565]
[1625510452300,1.1680006,33972.0,33971.0,0.97670565]
[1625510452500,1.1680006,33972.0,33971.0,1.21728109]
[1625510452605,1.1680006,33972.0,33971.0,1.27628109]
[1625510452852,0.48115088,33972.0,33971.0,3.88062526]
[1625510452950,0.48115088,33972.0,33971.0,8.19202526]
[1625510453204,0.68942824,33978.0,33971.0,9.75461905]
[1625510453406,0.74842824,33978.0,33971.0,9.75461905]
[1625510453504,0.01525031,33976.0,33972.0,0.00348846]
[1625510453606,0.01525031,33976.0,33972.0,0.06248846]
[1625510453806,0.68942824,33978.0,33977.0,1.90998578]
[1625510453906,0.74842824,33978.0,33977.0,1.90998578]
[1625510454259,0.68942824,33978.0,33977.0,1.91347405]
[1625510454358,1.61950727,33983.0,33977.0,1.91347405]
[1625510454359,0.6911537,33979.0,33977.0,3.01426671]
[1625510454458,0.93172914,33979.0,33978.0,0.48115088]
[1625510454558,0.93172914,33979.0,33978.0,0.75688088]
[1625510454658,0.93172914,33979.0,33978.0,0.81588088]
[1625510454808,0.93172914,33979.0,33978.0,0.81936888]
[1625510454910,0.24057544,33979.0,33978.0,5.15941485]
[1625510457615,0.24057544,33979.0,33978.0,6.72150676]
[1625510458216,0.29957544,33979.0,33978.0,6.72150676]
[1625510458524,0.29957544,33979.0,33978.0,5.15941485]
[1625510460535,0.24057544,33979.0,33978.0,5.15941485]
[1625510461127,0.24057544,33979.0,33978.0,6.72118317]
[1625510462328,0.24057544,33979.0,33978.0,5.15941485]
[1625510465129,0.24057544,33979.0,33978.0,6.7210162]
[1625510468750,0.24057544,33979.0,33978.0,5.15941485]
[1625510468838,0.46000544,33979.0,33978.0,5.15592685]
[1625510468937,0.46000544,33979.0,33978.0,5.09692685]
[1625510469150,0.51900544,33979.0,33978.0,5.09692685]
[1625510469236,0.51900544,33979.0,33978.0,4.82119685]
[1625510470742,0.51900544,33979.0,33978.0,4.88019685]
[1625510470846,0.51900544,33979.0,33978.0,4.82119685]
[1625510471151,0.46000544,33979.0,33978.0,4.88019685]
[1625510471402,0.24057544,33979.0,33978.0,4.82119685]
[1625510471520,0.24057544,33979.0,33978.0,4.88019685]
[1625510471595,0.29957544,33979.0,33978.0,4.88019685]
[1625510473997,0.29957544,33979.0,33978.0,4.88368482]
[1625510476504,0.29957544,33979.0,33978.0,5.40407397]
[1625510478509,0.24057544,33979.0,33978.0,5.40407397]
[1625510478820,0.29957544,33979.0,33978.0,5.40407397]
[1625510478961,0.29957544,33979.0,33978.0,6.96497848]
[1625510481617,0.24057544,33979.0,33978.0,6.96497848]
[1625510482166,0.24057544,33979.0,33978.0,7.26623848]
[1625510485029,0.24057544,33983.0,33978.0,7.26623848]
[1625510485135,0.24057544,33983.0,33978.0,7.32523848]
[1625510485427,0.24057544,33986.0,33982.0,4.85380763]
[1625510485526,1.20697525,33989.0,33982.0,4.85380763]
[1625510485626,1.20697525,33989.0,33982.0,4.97180763]
[1625510485725,1.20697525,33989.0,33983.0,0.00348698]
[1625510485826,1.20697525,33989.0,33983.0,0.06248698]
[1625510485927,1.20697525,33989.0,33983.0,0.12148698]
[1625510486027,0.24057544,33990.0,33988.0,9.01127596]
[1625510486127,0.24057544,33990.0,33988.0,9.32392596]
[1625510486226,0.24057544,33990.0,33988.0,9.38292596]
[1625510486327,0.24057544,33990.0,33988.0,9.38641286]
[1625510486529,0.24057544,33990.0,33989.0,4.85632933]
[1625510486628,0.24057544,33990.0,33989.0,4.91532933]
[1625510486727,0.24057544,33990.0,33989.0,5.45548021]
[1625510489635,0.24057544,33990.0,33989.0,5.39648021]
[1625510489831,0.24057544,33990.0,33989.0,5.33748021]
[1625510489934,0.29957544,33990.0,33989.0,5.33748021]
[1625510490234,0.24057544,33990.0,33989.0,4.00995377]
[1625510490534,0.29957544,33990.0,33989.0,4.00995377]
[1625510490633,0.24057544,33990.0,33989.0,4.00995377]
[1625510490733,0.24057544,33990.0,33989.0,4.31230377]
[1625510490906,0.24057544,33990.0,33989.0,5.69712317]
[1625510491097,0.24057544,33990.0,33989.0,5.75612317]
[1625510491335,0.24057544,33990.0,33989.0,7.31395182]
[1625510491434,0.24057544,33997.0,33989.0,7.31395182]
[1625510491536,0.24057544,33997.0,33990.0,0.057]
[1625510491735,0.24057544,33997.0,33990.0,0.116]
[1625510491936,0.29957544,33997.0,33991.0,0.00348662]
[1625510492038,0.24057544,33997.0,33996.0,4.1911]
[1625510492139,0.24057544,33997.0,33996.0,4.51824]
[1625510492341,0.24057544,33997.0,33996.0,6.82740341]
[1625510492538,0.29957544,33997.0,33996.0,6.82740341]
[1625510492740,0.29957544,33997.0,33996.0,6.27001733]
[1625510493991,0.29957544,33997.0,33996.0,7.30819102]
[1625510494090,0.24057544,33997.0,33996.0,7.30819102]
[1625510494491,0.75761135,34001.0,33996.0,7.30819102]
[1625510494591,0.75761135,34001.0,33997.0,0.057]
[1625510494793,0.75761135,34001.0,34000.0,0.24057544]
[1625510494893,0.75761135,34001.0,34000.0,0.29957544]
[1625510495146,0.24057544,34001.0,34000.0,0.29957544]
[1625510495443,0.51605712,34004.0,34000.0,0.29957544]
[1625510495542,0.51605712,34004.0,34000.0,0.35657544]
[1625510495643,0.89935141,34005.0,34000.0,0.35657544]
[1625510495744,0.89935141,34005.0,34000.0,0.87545786]
[1625510495844,0.68801885,34005.0,34000.0,0.87545786]
[1625510495942,0.62901885,34005.0,34001.0,0.00348582]
[1625510496042,0.62901885,34005.0,34001.0,0.06248582]
[1625510496144,0.62901885,34005.0,34001.0,0.12148582]
[1625510496243,0.62901885,34005.0,34001.0,0.17848582]
[1625510496344,0.26335407,34023.0,34001.0,0.17848582]
[1625510496345,0.24057544,34013.0,34004.0,2.24802944]
[1625510496446,0.24057544,34013.0,34005.0,0.057]
[1625510496644,0.24057544,34013.0,34005.0,0.175]
[1625510496744,0.24057544,34013.0,34012.0,0.48115088]
[1625510496845,0.24057544,34013.0,34012.0,0.80152088]
[1625510497346,0.24057544,34013.0,34012.0,0.86052088]
[1625510497447,0.24057544,34013.0,34012.0,0.80152088]
[1625510497649,0.24057544,34013.0,34012.0,0.86052088]
[1625510497748,0.24057544,34013.0,34012.0,0.80152088]
[1625510497849,0.24057544,34013.0,34012.0,0.86052088]
[1625510498251,0.24057544,34013.0,34012.0,0.80152088]
[1625510498351,0.24057544,34013.0,34012.0,0.86052088]
[1625510499055,0.24057544,34013.0,34012.0,0.80152088]
[1625510499808,0.29957544,34013.0,34012.0,0.80152088]
[1625510499905,0.29957544,34013.0,34012.0,0.48115088]
[1625510500105,0.24057544,34013.0,34012.0,0.48115088]
[1625510500305,0.29957544,34013.0,34012.0,0.48115088]
[1625510500404,0.29957544,34013.0,34012.0,0.81811088]
[1625510500604,0.24057544,34013.0,34012.0,0.81811088]
[1625510504510,0.29957544,34013.0,34012.0,0.81811088]
[1625510504611,0.29957544,34013.0,34012.0,0.48115088]
[1625510505513,0.24057544,34013.0,34012.0,0.48115088]
[1625510507315,0.29957544,34013.0,34012.0,0.48115088]
[1625510509834,0.24057544,34013.0,34012.0,0.48115088]
[1625510509927,0.24057544,34013.0,34012.0,0.69048088]
[1625510511691,0.24057544,34019.0,34012.0,0.69048088]
[1625510511831,0.34452168,34020.0,34013.0,0.057]
[1625510511887,0.40359383,34019.0,34013.0,0.116]
[1625510511982,0.34459383,34019.0,34013.0,0.116]
[1625510512284,0.24057544,34022.0,34015.0,0.34307938]
[1625510512382,0.24057544,34022.0,34016.0,0.057]
[1625510512485,0.29957544,34022.0,34016.0,0.057]
[1625510512783,0.35857544,34022.0,34016.0,0.057]
[1625510512884,0.35857544,34022.0,34021.0,0.48115088]
[1625510512984,0.35857544,34022.0,34021.0,0.69885088]
[1625510515540,0.29957544,34022.0,34021.0,0.69885088]
[1625510515991,0.35857544,34022.0,34021.0,0.69885088]
[1625510516643,0.29957544,34022.0,34021.0,0.69885088]
[1625510516745,0.35857544,34022.0,34021.0,0.69885088]
[1625510517547,0.35857544,34022.0,34021.0,0.48115088]
[1625510517994,0.67298544,34022.0,34021.0,0.48115088]
[1625510518995,0.35857544,34022.0,34021.0,0.48115088]
[1625510523290,0.29957544,34022.0,34021.0,0.73595088]
[1625510523376,0.059,34022.0,34021.0,0.73595088]
[1625510523470,0.24057544,34026.0,34021.0,0.73943548]
[1625510523612,0.29957544,34026.0,34022.0,0.057]
[1625510523822,0.29957544,34026.0,34022.0,4.0767]
[1625510523913,0.29957544,34026.0,34023.0,0.00348444]
[1625510524214,0.24057544,34026.0,34023.0,0.00348444]
[1625510524315,0.29957544,34026.0,34023.0,0.00348444]
[1625510524965,0.059,34026.0,34025.0,0.24057544]
[1625510525264,0.059,34026.0,34025.0,0.24405977]
[1625510525516,0.24057544,34031.0,34025.0,0.24405977]
[1625510525615,0.24057544,34031.0,34025.0,0.30105977]
[1625510525715,0.059,34026.0,34025.0,0.30105977]
[1625510525815,0.059,34026.0,34025.0,0.24405977]
[1625510525914,0.059,34026.0,34025.0,0.24057544]
[1625510526214,0.059,34026.0,34025.0,0.24405975]
[1625510526815,0.24057544,34031.0,34025.0,0.24405975]
[1625510526916,0.3439128,34034.0,34030.0,0.48115088]
[1625510527018,0.118,34031.0,34030.0,0.81004088]
[1625510527216,0.059,34031.0,34030.0,0.81004088]
[1625510527317,0.059,34031.0,34030.0,0.81352489]
[1625510527617,0.58448397,34035.0,34030.0,0.81352489]
[1625510528018,0.58448397,34035.0,34031.0,0.00348383]
[1625510528117,0.24057544,34035.0,34031.0,0.00348383]
[1625510528819,0.24057544,34036.0,34031.0,0.00348383]
[1625510528920,0.059,34035.0,34032.0,0.24057544]
[1625510529020,0.059,34035.0,34032.0,0.29757544]
[1625510529120,0.3437514,34039.0,34032.0,0.29757544]
[1625510529222,0.3437514,34039.0,34032.0,0.35657544]
[1625510529421,0.3437514,34039.0,34033.0,0.00348276]
[1625510529619,0.3437514,34039.0,34033.0,0.06248276]
[1625510529723,0.34372281,34046.0,34033.0,0.06248276]
[1625510529920,0.34372281,34046.0,34034.0,0.00348206]
[1625510530020,0.40272281,34046.0,34034.0,0.00348206]
[1625510530119,0.40272281,34046.0,34034.0,0.06248206]
[1625510530219,0.40272281,34046.0,34037.0,4.0155]
[1625510530320,0.059,34046.0,34038.0,0.28021]
[1625510530422,0.34366919,34048.0,34038.0,0.33921]
[1625510530523,1.27123952,34050.0,34038.0,0.28021]
[1625510530720,1.27123952,34050.0,34039.0,0.5]
[1625510530820,1.2024128,34052.0,34040.0,0.057]
[1625510531023,1.02996637,34059.0,34051.0,0.96230176]
[1625510531124,1.02996637,34059.0,34051.0,1.23219176]
[1625510531224,1.08896637,34059.0,34051.0,1.23219176]
[1625510531322,1.08896637,34059.0,34051.0,1.29119176]
[1625510531422,1.02996637,34059.0,34051.0,1.29119176]
[1625510531624,0.24057544,34068.0,34051.0,1.29119176]
[1625510531724,0.29957544,34068.0,34051.0,1.34819176]
[1625510531825,0.35857544,34068.0,34051.0,1.40719176]
[1625510531929,0.35857544,34068.0,34051.0,1.34819176]
[1625510532224,0.0877,34067.0,34051.0,1.34819176]
[1625510532326,0.29957544,34068.0,34051.0,1.34819176]
[1625510532429,0.118,34067.0,34051.0,1.40719176]
[1625510532725,0.118,34067.0,34051.0,1.34819176]
[1625510533028,0.118,34067.0,34066.0,0.24057544]
[1625510533532,0.205,34067.0,34066.0,0.24057544]
[1625510533729,0.118,34067.0,34066.0,0.24057544]
[1625510533831,0.059,34067.0,34066.0,0.24057544]
[1625510533930,1.59697779,34067.0,34056.0,0.24057544]
[1625510534029,1.65597779,34067.0,34056.0,0.24057544]
[1625510534446,0.45605,34067.0,34056.0,0.24057544]
[1625510534987,0.24057544,34059.0,34056.0,0.48115088]
[1625510535104,0.51865544,34059.0,34056.0,0.48115088]
[1625510535186,0.63665544,34059.0,34056.0,0.48115088]
[1625510535736,0.63665544,34059.0,34051.0,0.24057544]
[1625510536223,0.63665544,34059.0,34051.0,0.21267544]
[1625510536386,0.72375544,34059.0,34051.0,0.21267544]
[1625510536490,0.17139507,34055.0,34051.0,0.21267544]
[1625510536589,5.1019,34052.0,34032.0,0.16910186]
[1625510536725,0.059,34051.0,34032.0,0.16910186]
[1625510536890,0.118,34051.0,34032.0,0.16910186]
[1625510536988,0.24057544,34038.0,34037.0,0.24057544]
[1625510537089,0.63673544,34038.0,34037.0,0.24057544]
[1625510537189,0.69573544,34038.0,34037.0,0.24057544]
[1625510537292,0.69573544,34038.0,34034.0,0.24057544]
[1625510537593,0.69573544,34038.0,34034.0,0.16857544]
[1625510538043,3.5937,34035.0,34034.0,0.16857544]
[1625510538141,3.6527,34035.0,34034.0,0.16857544]
[1625510538247,3.7117,34035.0,34034.0,0.16857544]
[1625510538546,3.7117,34035.0,34030.0,0.24057544]
[1625510539042,0.48115088,34031.0,34030.0,0.24057544]
[1625510539141,0.70813088,34031.0,34030.0,0.24057544]
[1625510539242,0.82613088,34031.0,34030.0,0.24057544]
[1625510542699,0.76713088,34031.0,34030.0,0.24057544]
[1625510542798,0.82613088,34031.0,34030.0,0.24057544]
[1625510544358,0.82613088,34031.0,34027.0,0.24057544]
[1625510545162,0.24057544,34029.0,34027.0,0.24057544]
[1625510545255,0.29957544,34029.0,34027.0,0.24057544]
[1625510545356,0.35857544,34029.0,34027.0,0.24057544]
[1625510548165,0.35857544,34029.0,34021.0,0.24057544]
[1625510548567,0.53084067,34029.0,34021.0,0.24057544]
[1625510548967,0.53084067,34029.0,34017.0,0.41152061]
[1625510548968,0.17234893,34027.0,34017.0,0.24057544]
[1625510549168,0.72172632,34018.0,34017.0,0.24057544]
[1625510549269,1.16831632,34018.0,34017.0,0.24057544]
[1625510549868,1.16831632,34018.0,34013.0,0.17133345]
[1625510550071,1.16831632,34018.0,34010.0,0.21990889]
[1625510550270,1.16831632,34018.0,34012.0,0.1715061]
[1625510550670,1.16831632,34018.0,34007.0,0.24057544]
[1625510551172,0.48115088,34008.0,34007.0,0.24057544]
[1625510551272,0.87803088,34008.0,34007.0,0.24057544]
[1625510551371,0.93703088,34008.0,34007.0,0.24057544]
[1625510551625,0.93703088,34008.0,34003.0,0.24057544]
[1625510551724,0.93703088,34008.0,34001.0,1.20387441]
[1625510552274,5.0158,34002.0,34001.0,1.20387441]
[1625510552375,5.0158,34002.0,33999.0,0.24057544]
[1625510552476,5.1338,34002.0,33999.0,0.24057544]
[1625510552875,0.118,34002.0,33999.0,0.24057544]
[1625510553002,0.48115088,34008.0,33999.0,0.24057544]
[1625510553111,0.48115088,34008.0,33999.0,0.58437544]
[1625510553185,0.54015088,34008.0,34003.0,0.24057544]
[1625510553680,0.48115088,34008.0,34003.0,0.24057544]
[1625510553776,0.54015088,34008.0,34003.0,0.24057544]
[1625510554077,0.59915088,34008.0,34003.0,0.24057544]
[1625510554297,0.54015088,34008.0,34001.0,1.2042933]
[1625510554385,0.59915088,34008.0,34001.0,1.2042933]
[1625510554729,0.59915088,34008.0,34000.0,1.2630478]
[1625510554828,0.59915088,34008.0,34000.0,1.2060478]
[1625510555228,0.18770816,34001.0,34000.0,1.2060478]
[1625510555328,0.18770816,34001.0,33999.0,1.44755291]
[1625510555329,0.24670816,34001.0,33999.0,1.44755291]
[1625510555429,0.30570816,34001.0,33999.0,1.44755291]
[1625510555528,0.24670816,34001.0,33999.0,1.44755291]
[1625510556432,0.30570816,34001.0,34000.0,0.68962712]
[1625510558081,0.30570816,34001.0,33999.0,0.93054816]
[1625510558684,0.30570816,34001.0,33999.0,0.24057544]
[1625510566194,0.30570816,34001.0,33999.0,0.32668748]
[1625510566598,0.30570816,34001.0,34000.0,0.08611141]
[1625510567098,0.24670816,34001.0,34000.0,0.08611141]
[1625510567400,0.24670816,34001.0,34000.0,0.68873639]
[1625510567599,0.24670816,34001.0,34000.0,0.69222194]
[1625510568212,0.18770816,34001.0,34000.0,0.69222194]
[1625510568607,0.24670816,34001.0,34000.0,1.72530421]
[1625510568953,0.18770816,34001.0,34000.0,0.69222194]
[1625510569204,0.24670816,34001.0,34000.0,0.69222194]
[1625510569309,3.7874,34006.0,34000.0,0.93279738]
[1625510569504,3.9054,34006.0,34000.0,0.93279738]
[1625510569612,3.9054,34006.0,34003.0,0.08607783]
[1625510570125,3.9054,34006.0,34002.0,0.08607856]
[1625510571007,3.9054,34006.0,34003.0,0.00348551]
[1625510571358,3.9054,34006.0,34005.0,0.24057544]
[1625510571460,3.9054,34006.0,34005.0,0.46920544]
[1625510571811,3.9054,34006.0,34005.0,0.472691]
[1625510581543,3.8464,34006.0,34005.0,0.472691]
[1625510581794,3.9054,34006.0,34005.0,0.472691]
[1625510582248,3.8464,34006.0,34005.0,0.472691]
[1625510582947,3.8464,34006.0,34005.0,0.55868965]
[1625510583898,3.7874,34006.0,34005.0,0.55868965]
[1625510585459,3.7874,34006.0,34005.0,0.56740256]
[1625510586206,3.7874,34006.0,34005.0,0.55868965]
[1625510587008,0.48115088,34008.0,34005.0,0.55868965]
[1625510587210,0.54015088,34008.0,34005.0,0.55868965]
[1625510587311,0.54015088,34008.0,34005.0,0.472691]
[1625510587509,0.54015088,34008.0,34006.0,0.00348506]
[1625510587810,0.54015088,34008.0,34006.0,0.08949561]
[1625510588061,0.54015088,34008.0,34007.0,0.0034852]
[1625510588311,0.54015088,34008.0,34006.0,0.0034852]
[1625510588412,0.59915088,34008.0,34006.0,0.0034852]
[1625510588912,0.54015088,34008.0,34006.0,0.0034852]
[1625510590166,0.54015088,34008.0,34007.0,0.08605293]
[1625510590415,0.54015088,34008.0,34007.0,0.089538]
[1625510591319,0.54015088,34008.0,34007.0,0.00348507]
[1625510591420,0.59915088,34008.0,34007.0,0.00348507]
[1625510592172,0.59915088,34008.0,34007.0,0.08970012]
[1625510592622,0.54015088,34008.0,34007.0,0.08970012]
[1625510592722,0.48115088,34008.0,34007.0,0.08970012]
[1625510592932,0.48115088,34008.0,34007.0,0.00348507]
[1625510593123,0.54015088,34008.0,34007.0,0.00348507]
[1625510593423,0.54015088,34008.0,34007.0,0.52076224]
[1625510593573,0.54015088,34008.0,34007.0,0.51727717]
[1625510593928,0.48115088,34008.0,34007.0,0.52076224]
[1625510594477,0.48115088,34008.0,34007.0,2.24825356]
[1625510594631,0.54015088,34008.0,34007.0,2.24825356]
[1625510594728,0.59915088,34008.0,34007.0,2.24825356]
[1625510594830,0.54015088,34008.0,34007.0,3.45748957]
[1625510595429,0.54015088,34008.0,34007.0,3.69806501]
[1625510597231,0.48115088,34008.0,34007.0,3.69806501]